bitfinex/quotes_BTCUSD_20250109
["timestamp","ask_amount","ask_price","bid_price","bid_amount"]
[1736396419399,0.465191,94024.0,94023.0,0.0001702]
[1736396419642,0.63545341,94024.0,94023.0,0.0001702]
[1736396420400,0.65211554,94024.0,94023.0,0.0001702]
[1736396420717,0.63545341,94024.0,94023.0,0.0001702]
[1736396420928,0.63569254,94024.0,94023.0,0.0001702]
[1736396421553,0.73969254,94024.0,94023.0,0.0001702]
[1736396421733,0.74769254,94024.0,94023.0,0.0001702]
[1736396422154,0.8079443,94024.0,94023.0,0.0001702]
[1736396422577,0.56980419,94024.0,94023.0,0.0001702]
[1736396422757,0.56582252,94024.0,94023.0,0.0001702]
[1736396422958,0.57382252,94024.0,94023.0,0.0001702]
[1736396423363,0.57464506,94024.0,94023.0,0.0001702]
[1736396423549,0.57488419,94024.0,94023.0,0.0001702]
[1736396423749,0.6747881,94024.0,94023.0,0.0001702]
[1736396424043,0.69145041,94024.0,94023.0,0.0001702]
[1736396429535,0.69024055,94024.0,94023.0,0.0001702]
[1736396431025,0.69004142,94024.0,94023.0,0.0001702]
[1736396432029,0.69648369,94024.0,94023.0,0.0001702]
[1736396432434,0.34997493,94024.0,94023.0,0.0001702]
[1736396432642,0.24567517,94024.0,94023.0,0.0001702]
[1736396433369,0.01844227,94024.0,94023.0,0.0001702]
[1736396433536,0.02273449,94024.0,94023.0,0.0771702]
[1736396433786,0.01073449,94024.0,94023.0,0.0771702]
[1736396433936,0.01473449,94024.0,94023.0,0.0771702]
[1736396434156,0.01546435,94024.0,94023.0,0.0771702]
[1736396434566,0.002,94024.0,94023.0,0.0771702]
[1736396434815,0.003,94024.0,94023.0,0.0771702]
[1736396435432,0.00127014,94029.0,94024.0,0.425422]
[1736396435565,0.00127014,94029.0,94024.0,0.212711]
[1736396435774,0.00127014,94033.0,94029.0,0.212699]
[1736396435974,0.00127014,94030.0,94029.0,0.212699]
[1736396437092,0.00127014,94030.0,94029.0,0.215699]
[1736396437301,0.00127014,94030.0,94029.0,0.212699]
[1736396437502,0.00127014,94035.0,94029.0,0.425398]
[1736396437922,0.00127014,94038.0,94029.0,0.425398]
[1736396438078,0.00127014,94037.0,94029.0,0.426398]
[1736396438574,0.00127014,94037.0,94029.0,0.425398]
[1736396438785,0.001,94030.0,94029.0,0.216699]
[1736396438978,0.00227014,94030.0,94029.0,0.216699]
[1736396439206,0.00127014,94030.0,94029.0,0.212699]
[1736396439382,0.00127014,94030.0,94029.0,0.214699]
[1736396439808,0.00127014,94030.0,94029.0,0.212699]
[1736396440120,0.001,94030.0,94029.0,0.217699]
[1736396440461,0.00227014,94030.0,94029.0,0.217699]
[1736396440909,0.001,94030.0,94029.0,0.217699]
[1736396441577,0.00227014,94030.0,94029.0,0.217699]
[1736396441848,0.00127014,94030.0,94029.0,0.213699]
[1736396442263,0.00127014,94030.0,94029.0,0.218699]
[1736396442436,0.00127014,94037.0,94029.0,0.213699]
[1736396442648,0.00127014,94033.0,94030.0,0.0823]
[1736396442851,0.00953783,94036.0,94030.0,0.11678812]
[1736396443012,0.00050212,94039.0,94030.0,0.0823]
[1736396443386,0.00050212,94039.0,94038.0,0.212679]
[1736396445179,0.00050212,94039.0,94038.0,0.44457876]
[1736396446030,0.00050212,94039.0,94038.0,0.44657876]
[1736396446261,0.00050212,94039.0,94038.0,0.340279]
[1736396446389,0.00127014,94060.0,94038.0,0.36667876]
[1736396446571,0.00127014,94060.0,94059.0,0.289832]
[1736396447386,0.00127014,94073.0,94067.0,0.212614]
[1736396447772,0.00127014,94073.0,94067.0,0.293914]
[1736396448251,0.00127014,94084.0,94067.0,0.39821376]
[1736396450250,0.00127014,94084.0,94067.0,0.39921376]
[1736396450462,0.0010853,94068.0,94067.0,0.40821376]
[1736396450837,0.0010853,94068.0,94067.0,0.40721376]
[1736396451180,0.0010853,94068.0,94067.0,0.41021376]
[1736396451408,0.0010853,94068.0,94067.0,0.49375994]
[1736396451789,8.53e-05,94068.0,94067.0,0.48475994]
[1736396452230,8.53e-05,94068.0,94067.0,0.49275994]
[1736396452409,8.53e-05,94068.0,94067.0,0.48475994]
[1736396452807,8.53e-05,94068.0,94067.0,0.49275994]
[1736396453488,8.53e-05,94068.0,94067.0,0.48475994]
[1736396453885,8.53e-05,94068.0,94067.0,0.49375994]
[1736396454462,8.53e-05,94068.0,94067.0,0.49075994]
[1736396454658,8.53e-05,94068.0,94067.0,0.49475994]
[1736396455259,8.53e-05,94068.0,94067.0,0.48175994]
[1736396455649,0.0010853,94068.0,94067.0,0.49475994]
[1736396455849,0.0010853,94068.0,94067.0,0.79355994]
[1736396456044,0.00127014,94102.0,94098.0,0.212544]
[1736396456341,0.00127014,94099.0,94098.0,0.212544]
[1736396456719,0.00127014,94099.0,94097.0,0.0771]
[1736396458004,0.00127014,94099.0,94097.0,0.0781]
[1736396458393,0.00127014,94099.0,94098.0,0.001]
[1736396458810,0.00127014,94099.0,94087.0,0.288067]
[1736396458811,0.00127014,94089.0,94087.0,0.288067]
[1736396459991,0.00127014,94092.0,94089.0,0.212564]
[1736396460220,0.212515,94111.0,94095.0,0.21255]
[1736396460419,0.10429976,94110.0,94095.0,0.21255]
[1736396460593,0.212519,94109.0,94098.0,0.001]
[1736396460920,0.11245866,94108.0,94098.0,0.001]
[1736396461145,0.11245866,94108.0,94095.0,0.4251]
[1736396461319,0.11245866,94108.0,94090.0,0.24525739]
[1736396461320,0.0081589,94108.0,94101.0,0.212536]
[1736396461678,0.37545538,94112.0,94101.0,0.212536]
[1736396461886,0.00823202,94107.0,94101.0,0.212536]
[1736396462115,0.002,94111.0,94105.0,0.212527]
[1736396462312,0.05596,94115.0,94106.0,0.0824]
[1736396462637,0.212499,94119.0,94106.0,0.0824]
[1736396463232,0.001,94111.0,94106.0,0.0824]
[1736396463653,0.212499,94119.0,94106.0,0.0824]
[1736396463831,0.001,94112.0,94106.0,0.0824]
[1736396464240,0.01289391,94116.0,94107.0,0.212524]
[1736396464768,0.01289391,94116.0,94112.0,0.212512]
[1736396464969,0.00261921,94114.0,94112.0,0.212512]
[1736396465320,0.00061921,94114.0,94112.0,0.212512]
[1736396465493,0.00061921,94114.0,94107.0,0.212524]
[1736396465675,0.00261921,94114.0,94107.0,0.212524]
[1736396465875,0.00061921,94114.0,94107.0,0.212524]
[1736396466677,0.00061921,94114.0,94112.0,0.212512]
[1736396466885,0.00061921,94114.0,94112.0,0.213512]
[1736396467236,0.00161921,94114.0,94112.0,0.213512]
[1736396467646,0.00061921,94114.0,94112.0,0.213512]
[1736396468032,0.00061921,94114.0,94112.0,0.214512]
[1736396468245,0.00061921,94114.0,94112.0,0.213512]
[1736396469021,0.00061921,94114.0,94112.0,0.215512]
[1736396469229,0.00061921,94114.0,94113.0,0.0769]
[1736396470234,0.00061921,94114.0,94113.0,0.22926224]
[1736396470457,0.00061921,94114.0,94113.0,0.22819976]
[1736396471093,0.00061921,94114.0,94113.0,0.22919976]
[1736396471592,0.00061921,94114.0,94113.0,0.23119976]
[1736396471818,0.00061921,94114.0,94113.0,0.29682324]
[1736396473789,0.00061921,94114.0,94113.0,0.1269]
[1736396474751,0.00061921,94114.0,94113.0,0.0799]
[1736396477938,0.00061921,94114.0,94113.0,0.18419976]
[1736396478264,0.00061921,94114.0,94113.0,0.18526219]
[1736396480612,0.00061921,94114.0,94113.0,0.0799]
[1736396480821,0.00061921,94114.0,94113.0,0.003]
[1736396481026,0.48873829,94114.0,94113.0,0.003]
[1736396481235,0.49580448,94114.0,94113.0,0.003]
[1736396481442,0.54550448,94114.0,94113.0,0.003]
[1736396481642,0.1,94101.0,94087.0,0.00259068]
[1736396481861,0.16728567,94100.0,94087.0,0.00259068]
[1736396482067,0.05592,94099.0,94087.0,0.00259068]
[1736396482278,0.268462,94099.0,94087.0,0.00259068]
[1736396482487,0.00700129,94098.0,94087.0,0.00259068]
[1736396483525,0.00700129,94098.0,94087.0,0.00359068]
[1736396483985,0.00700129,94098.0,94088.0,0.212566]
[1736396484610,0.00700129,94098.0,94087.0,0.00359068]
[1736396484821,0.00800129,94098.0,94093.0,0.0832]
[1736396485016,0.01100129,94098.0,94096.0,0.212547]
[1736396485218,0.004,94098.0,94095.0,0.212551]
[1736396485421,0.05592,94110.0,94089.0,0.212564]
[1736396485654,0.212543,94099.0,94084.0,0.0832]
[1736396485839,0.212552,94095.0,94076.0,0.0832]
[1736396486196,0.00699928,94094.0,94079.0,0.212585]
[1736396487077,0.00699928,94094.0,94083.0,0.212577]
[1736396487431,0.212553,94094.0,94079.0,0.212585]
[1736396487635,0.00700149,94093.0,94079.0,0.212585]
[1736396488609,0.00700149,94093.0,94089.0,0.001]
[1736396488815,0.00700149,94093.0,94079.0,0.212585]
[1736396489025,0.00700149,94093.0,94084.0,0.212575]
[1736396489200,0.00900149,94093.0,94084.0,0.212575]
[1736396489599,0.00700149,94093.0,94084.0,0.212575]
[1736396489990,0.00900149,94093.0,94084.0,0.212575]
[1736396490814,0.0088736,94093.0,94084.0,0.212575]
[1736396491021,0.0098736,94093.0,94088.0,0.212566]
[1736396491195,0.0078736,94093.0,94088.0,0.212566]
[1736396491398,0.01217941,94094.0,94088.0,0.212566]
[1736396491639,0.001,94093.0,94084.0,0.212575]
[1736396491816,0.212542,94099.0,94084.0,0.212575]
[1736396492456,0.00688774,94098.0,94084.0,0.212575]
[1736396492657,0.001,94094.0,94088.0,0.212566]
[1736396493036,0.00688774,94093.0,94088.0,0.212566]
[1736396493236,0.00688774,94093.0,94087.0,0.00459068]
[1736396493969,0.00688774,94093.0,94088.0,0.212566]
[1736396494349,0.212537,94101.0,94088.0,0.212566]
[1736396494748,0.00688774,94100.0,94088.0,0.212566]
[1736396495231,0.00688774,94100.0,94088.0,0.213566]
[1736396495435,0.00688774,94100.0,94088.0,0.215566]
[1736396495632,0.00688774,94100.0,94088.0,0.214566]
[1736396495821,0.212542,94099.0,94087.0,0.00259068]
[1736396496022,0.001,94100.0,94088.0,0.212566]
[1736396496246,0.00688774,94099.0,94087.0,0.00259068]
[1736396497374,0.00688774,94099.0,94088.0,0.212566]
[1736396497778,0.001,94100.0,94088.0,0.212566]
[1736396498079,0.00688774,94098.0,94088.0,0.212566]
[1736396498289,0.01224106,94103.0,94090.0,0.212562]
[1736396498490,0.09435408,94108.0,94101.0,0.212536]
[1736396498928,0.09435408,94108.0,94089.0,0.0814]
[1736396499106,0.001,94100.0,94096.0,0.212547]
[1736396499480,0.09435408,94111.0,94096.0,0.212547]
[1736396499889,0.212511,94113.0,94096.0,0.212547]
[1736396500082,0.212511,94113.0,94100.0,0.212538]
[1736396501277,0.212511,94113.0,94096.0,0.212547]
[1736396501278,0.32421921,94114.0,94096.0,0.212547]
[1736396501529,0.004,94108.0,94101.0,0.212536]
[1736396501733,0.006,94108.0,94101.0,0.212536]
[1736396501938,0.002,94108.0,94101.0,0.212536]
[1736396502155,0.33606909,94114.0,94101.0,0.212536]
[1736396502357,0.003,94113.0,94102.0,0.0759]
[1736396502582,0.003,94113.0,94103.0,0.212533]
[1736396502999,0.003,94113.0,94104.0,0.21253]
[1736396503305,0.33606909,94114.0,94104.0,0.21253]
[1736396503484,0.33906909,94114.0,94104.0,0.42506]
[1736396503789,0.00361921,94114.0,94112.0,0.212511]
[1736396504133,0.00361921,94114.0,94113.0,0.0759]
[1736396504534,0.00361921,94114.0,94113.0,0.11062352]
[1736396504808,0.00061921,94114.0,94113.0,0.07696242]
[1736396505998,0.00061921,94114.0,94113.0,0.07896242]
[1736396506197,0.00061921,94114.0,94113.0,0.08596242]
[1736396506371,0.00161921,94114.0,94113.0,0.08396242]
[1736396506596,0.00061921,94114.0,94113.0,0.07696242]
[1736396506817,0.00061921,94114.0,94113.0,0.07996242]
[1736396507136,0.00161921,94114.0,94113.0,0.14228116]
[1736396507511,0.00061921,94114.0,94113.0,0.13528116]
[1736396507717,0.00161921,94114.0,94113.0,0.24758092]
[1736396507921,0.00161921,94114.0,94113.0,0.2465185]
[1736396508113,0.00161921,94114.0,94113.0,0.2435185]
[1736396508523,0.00161921,94114.0,94113.0,0.2465185]
[1736396508913,0.00061921,94114.0,94113.0,0.2355185]
[1736396509424,0.00161921,94114.0,94113.0,0.2455185]
[1736396509722,0.00061921,94114.0,94113.0,0.2355185]
[1736396509875,0.00161921,94114.0,94113.0,0.2425185]
[1736396510086,0.00161921,94114.0,94113.0,0.2455185]
[1736396510307,0.00061921,94114.0,94113.0,0.2385185]
[1736396510540,0.00061921,94114.0,94113.0,0.5115185]
[1736396510746,0.00161921,94114.0,94113.0,0.5683185]
[1736396511368,0.00083844,94133.0,94122.0,0.0808]
[1736396511544,0.00083844,94133.0,94123.0,0.1662847]
[1736396511748,0.00083844,94133.0,94124.0,0.0808]
[1736396511952,0.00083844,94133.0,94124.0,0.18509976]
[1736396513035,0.00083844,94133.0,94124.0,0.19809976]
[1736396513232,0.00083844,94133.0,94124.0,0.19916194]
[1736396513438,0.00083844,94133.0,94124.0,0.24548068]
[1736396513698,0.00083844,94133.0,94124.0,0.2534185]
[1736396513851,0.00020274,94125.0,94124.0,0.2534185]
[1736396514463,0.00020274,94125.0,94124.0,0.2494185]
[1736396514676,0.00020274,94125.0,94124.0,0.2534185]
[1736396518352,0.00020274,94125.0,94124.0,0.0938]
[1736396524539,0.00010962,94125.0,94124.0,0.19809976]
[1736396524657,0.00010962,94125.0,94124.0,0.34916203]
[1736396524870,6.2e-07,94125.0,94124.0,0.61719976]
[1736396525078,7.4e-07,94134.0,94133.0,0.373]
[1736396525277,7.4e-07,94134.0,94133.0,0.90526996]
[1736396525278,1e-08,94134.0,94133.0,0.90526996]
[1736396525477,1e-08,94134.0,94133.0,0.95136996]
[1736396526310,1e-08,94134.0,94133.0,0.96036996]
[1736396526713,1e-08,94134.0,94133.0,0.95136996]
[1736396526954,1e-08,94134.0,94133.0,0.96036996]
[1736396527171,1e-08,94134.0,94133.0,0.86036996]
[1736396527385,1e-08,94134.0,94133.0,0.96036996]
[1736396527936,1e-08,94134.0,94133.0,0.96636996]
[1736396528365,1e-08,94134.0,94133.0,0.96036996]
[1736396528603,1e-08,94134.0,94133.0,0.90456996]
[1736396528808,1e-08,94134.0,94133.0,0.90956996]
[1736396528975,1e-08,94134.0,94133.0,0.80056996]
[1736396529195,1e-08,94134.0,94133.0,0.90056996]
[1736396529399,1e-08,94134.0,94133.0,0.90956996]
[1736396529596,1e-08,94134.0,94133.0,0.90056996]
[1736396529827,1e-08,94134.0,94133.0,0.80056996]
[1736396530092,1e-08,94134.0,94133.0,0.67756996]
[1736396530301,1e-08,94134.0,94133.0,0.47646996]
[1736396530451,1e-08,94134.0,94133.0,0.39206476]
[1736396530656,1e-08,94134.0,94133.0,0.33076476]
[1736396530856,1e-08,94134.0,94133.0,0.32176476]
[1736396531222,1e-08,94134.0,94133.0,0.31676476]
[1736396531398,1e-08,94134.0,94133.0,0.39093644]
[1736396531765,1e-08,94134.0,94133.0,0.39293644]
[1736396532389,1e-08,94134.0,94133.0,0.32776476]
[1736396532934,1e-08,94134.0,94133.0,0.31876476]
[1736396533351,1e-08,94134.0,94133.0,0.32676476]
[1736396534098,1e-08,94134.0,94133.0,0.32476476]
[1736396534312,1e-08,94134.0,94133.0,0.32676476]
[1736396534537,1e-08,94134.0,94133.0,0.40193644]
[1736396534974,1e-08,94134.0,94133.0,0.32476476]
[1736396535119,1e-08,94134.0,94133.0,0.32676476]
[1736396535529,0.01663786,94134.0,94133.0,0.222465]
[1736396535736,0.01663786,94134.0,94133.0,0.01]
[1736396535934,0.0054021,94134.0,94133.0,0.01]
[1736396536639,0.0054021,94134.0,94124.0,0.212485]
[1736396536995,1e-08,94134.0,94133.0,0.01]
[1736396537197,1e-08,94134.0,94133.0,0.002]
[1736396537428,1e-08,94134.0,94118.0,0.424998]
[1736396537564,1e-08,94134.0,94122.0,0.212489]
[1736396537775,0.00100001,94134.0,94122.0,0.212489]
[1736396538298,1e-08,94134.0,94122.0,0.424978]
[1736396539064,0.00100001,94134.0,94125.0,0.212481]
[1736396539208,0.00300001,94134.0,94125.0,0.212481]
[1736396539615,0.00100001,94134.0,94125.0,0.212481]
[1736396539812,0.00300001,94134.0,94125.0,0.212481]
[1736396540196,0.00100001,94134.0,94125.0,0.212481]
[1736396540399,1e-08,94134.0,94126.0,0.00106238]
[1736396540603,0.00100001,94134.0,94109.0,0.10536207]
[1736396540810,0.00200001,94134.0,94109.0,0.10536207]
[1736396541012,0.00200001,94134.0,94122.0,0.212489]
[1736396541222,0.212505,94116.0,94099.0,0.212539]
[1736396541407,0.0558,94115.0,94094.0,0.425104]
[1736396541613,0.0558,94115.0,94098.0,0.212542]
[1736396542228,0.0558,94115.0,94088.0,0.0771]
[1736396542476,0.00531535,94114.0,94089.0,0.1053624]
[1736396542903,0.0558,94115.0,94089.0,0.1053624]
[1736396543101,0.001,94115.0,94111.0,0.212513]
[1736396543254,0.0508,94124.0,94113.0,0.21251]
[1736396543465,0.0508,94124.0,94122.0,0.21249]
[1736396543838,1e-08,94134.0,94122.0,0.21249]
[1736396544041,1e-08,94134.0,94126.0,0.212479]
[1736396544490,0.01664117,94132.0,94126.0,0.212479]
[1736396544668,0.01664117,94132.0,94123.0,0.212487]
[1736396544669,0.01664117,94132.0,94127.0,0.0424966]
[1736396545464,1e-08,94134.0,94127.0,0.0424966]
[1736396546725,0.00100001,94134.0,94127.0,0.0424966]
[1736396547666,0.00100001,94134.0,94123.0,0.212487]
[1736396547805,0.00100001,94134.0,94130.0,0.212471]
[1736396548440,0.00100001,94134.0,94127.0,0.212478]
[1736396548644,0.00100001,94134.0,94121.0,0.212492]
[1736396548852,1e-08,94134.0,94121.0,0.212492]
[1736396549023,1e-08,94134.0,94125.0,0.212482]
[1736396549234,0.00100001,94134.0,94125.0,0.212482]
[1736396549433,1e-08,94134.0,94125.0,0.212482]
[1736396549867,0.00100001,94134.0,94125.0,0.212482]
[1736396550225,1e-08,94134.0,94121.0,0.212492]
[1736396550400,1e-08,94134.0,94119.0,0.212496]
[1736396550612,0.212465,94133.0,94117.0,0.2125]
[1736396550784,0.00100001,94134.0,94119.0,0.212496]
[1736396551113,0.00100001,94134.0,94132.0,0.212467]
[1736396551986,1e-08,94134.0,94132.0,0.212467]
[1736396552190,0.00200001,94134.0,94133.0,0.0506745]
[1736396552403,0.00200001,94134.0,94133.0,0.15603653]
[1736396552605,1e-08,94134.0,94133.0,0.15603653]
[1736396552806,1e-08,94134.0,94133.0,0.23753637]
[1736396553034,1e-08,94134.0,94133.0,0.23647426]
[1736396553229,1e-08,94134.0,94133.0,0.0815]
[1736396553427,1e-08,94134.0,94132.0,0.214467]
[1736396553627,1e-08,94134.0,94132.0,0.212467]
[1736396554475,0.01663827,94134.0,94133.0,0.10536203]
[1736396554644,0.01663827,94134.0,94133.0,0.10429976]
[1736396555060,0.01663827,94134.0,94133.0,0.11029976]
[1736396555304,1e-08,94134.0,94133.0,0.10429976]
[1736396555458,1e-08,94134.0,94133.0,0.1053619]
[1736396555658,1e-08,94134.0,94133.0,0.1133619]
[1736396555976,1e-08,94134.0,94133.0,0.1073619]
[1736396556341,1e-08,94134.0,94133.0,0.1133619]
[1736396556834,1e-08,94134.0,94133.0,0.16119259]
[1736396557042,1e-08,94134.0,94133.0,0.16619259]
[1736396557250,1e-08,94134.0,94133.0,0.16819259]
[1736396557931,1e-08,94134.0,94133.0,0.16619259]
[1736396558167,1e-08,94134.0,94133.0,0.16919259]
[1736396558373,1e-08,94134.0,94133.0,0.24369259]
[1736396558646,1e-08,94134.0,94133.0,0.24263045]
[1736396558854,1e-08,94134.0,94133.0,0.25063045]
[1736396559064,1e-08,94134.0,94133.0,0.29943045]
[1736396559550,1e-08,94134.0,94133.0,0.29143045]
[1736396559960,1e-08,94134.0,94133.0,0.29943045]
[1736396560255,1e-08,94134.0,94133.0,0.56443045]
[1736396560466,1e-08,94134.0,94133.0,0.72019045]
[1736396560824,1e-08,94134.0,94133.0,0.71719045]
[1736396561291,1e-08,94134.0,94133.0,0.72019045]
[1736396561468,1e-08,94134.0,94133.0,0.72919045]
[1736396561666,1e-08,94134.0,94133.0,0.72619045]
[1736396561885,1e-08,94134.0,94133.0,0.71719045]
[1736396562095,1e-08,94134.0,94133.0,0.73319045]
[1736396564090,1e-08,94134.0,94133.0,0.67743045]
[1736396564347,1e-08,94134.0,94133.0,0.73319045]
[1736396564544,0.01663577,94134.0,94133.0,0.73319045]
[1736396565478,0.01663577,94134.0,94133.0,0.55443045]
[1736396565965,0.01663577,94134.0,94133.0,0.67743045]
[1736396566628,1e-08,94134.0,94133.0,0.67743045]
[1736396566760,1e-08,94134.0,94133.0,0.66843045]
[1736396566973,1e-08,94134.0,94133.0,0.66143045]
[1736396567181,1e-08,94134.0,94133.0,0.67543045]
[1736396567579,1e-08,94134.0,94133.0,0.67043045]
[1736396568626,1e-08,94134.0,94133.0,0.66843045]
[1736396568835,1e-08,94134.0,94133.0,0.67743045]
[1736396569302,1e-08,94134.0,94133.0,0.66843045]
[1736396569539,1e-08,94134.0,94133.0,0.67743045]
[1736396570441,1e-08,94134.0,94133.0,0.67043045]
[1736396570737,1e-08,94134.0,94133.0,0.67743045]
[1736396572813,1e-08,94134.0,94133.0,0.57743045]
[1736396573080,1e-08,94134.0,94133.0,0.67743045]
[1736396575438,1e-08,94134.0,94133.0,0.73319045]
[1736396576748,1e-08,94134.0,94133.0,0.72419045]
[1736396576927,1e-08,94134.0,94133.0,0.71719045]
[1736396577128,1e-08,94134.0,94133.0,0.72619045]
[1736396577310,1e-08,94134.0,94133.0,0.73319045]
[1736396577730,1e-08,94134.0,94133.0,0.39863045]
[1736396577934,1e-08,94134.0,94133.0,0.11329976]
[1736396578111,1e-08,94134.0,94133.0,0.12036185]
[1736396578329,1e-08,94134.0,94133.0,0.35046189]
[1736396578675,1e-08,94134.0,94133.0,0.19339976]
[1736396578851,1e-08,94134.0,94133.0,0.19446192]
[1736396579036,1e-08,94134.0,94133.0,0.20146192]
[1736396579234,1e-08,94134.0,94133.0,0.25627087]
[1736396579532,1e-08,94134.0,94133.0,0.26420871]
[1736396579737,1e-08,94134.0,94133.0,0.25520871]
[1736396580193,1e-08,94134.0,94133.0,0.26420871]
[1736396580341,1e-08,94134.0,94133.0,0.25720871]
[1736396580682,1e-08,94134.0,94133.0,0.25320871]
[1736396580999,1e-08,94134.0,94133.0,0.26220871]
[1736396581234,1e-08,94134.0,94133.0,0.25720871]
[1736396581416,1e-08,94134.0,94133.0,0.26120871]
[1736396581950,1e-08,94134.0,94133.0,0.17710871]
[1736396582175,1e-08,94134.0,94133.0,0.17417081]
[1736396582379,0.0001704,94157.0,94133.0,0.17417081]
[1736396582579,0.00015059,94157.0,94145.0,0.212437]
[1736396582788,0.00015059,94157.0,94149.0,0.212427]
[1736396582991,0.00015059,94157.0,94139.0,0.212451]
[1736396583197,0.212415,94155.0,94139.0,0.212451]
[1736396583404,0.212415,94155.0,94143.0,0.212441]
[1736396583876,0.212415,94155.0,94145.0,0.001]
[1736396584087,0.212415,94155.0,94143.0,0.212441]
[1736396584282,0.212415,94155.0,94139.0,0.212451]
[1736396584943,0.00015059,94157.0,94120.0,0.05821817]
[1736396584944,0.00015059,94157.0,94144.0,0.21244]
[1736396585150,0.10445035,94157.0,94144.0,0.21244]
[1736396585562,0.0486,94156.0,94144.0,0.21244]
[1736396586156,0.0486,94156.0,94144.0,0.21344]
[1736396586364,0.0486,94156.0,94144.0,0.21244]
[1736396586810,0.0486,94156.0,94146.0,0.212436]
[1736396587009,0.0486,94156.0,94145.0,0.0424886]
[1736396587391,0.0486,94156.0,94150.0,0.212424]
[1736396587601,0.00015059,94157.0,94150.0,0.212424]
[1736396588967,0.00015059,94157.0,94150.0,0.42485]
[1736396589150,5.749e-05,94157.0,94150.0,0.42485]
[1736396589765,5.749e-05,94157.0,94143.0,0.0784]
[1736396589969,5.749e-05,94157.0,94154.0,0.424833]
[1736396591768,5.749e-05,94157.0,94154.0,0.212416]
[1736396591968,5.749e-05,94157.0,94154.0,0.424833]
[1736396593137,5.749e-05,94157.0,94154.0,0.427833]
[1736396595110,5.749e-05,94157.0,94154.0,0.425833]
[1736396595509,5.749e-05,94157.0,94156.0,0.212413]
[1736396596333,5.749e-05,94157.0,94154.0,0.001]
[1736396596541,0.258913,94156.0,94154.0,0.001]
[1736396596958,0.0465,94156.0,94147.0,0.212433]
[1736396597804,0.0465,94156.0,94142.0,0.212444]
[1736396598441,0.0465,94156.0,94146.0,0.212435]
[1736396599602,0.0485,94156.0,94146.0,0.212435]
[1736396599812,0.0465,94156.0,94146.0,0.212435]
[1736396600326,0.0485,94156.0,94146.0,0.212435]
[1736396601311,0.0485,94156.0,94142.0,0.212444]
[1736396601921,0.0465,94156.0,94142.0,0.212444]
[1736396602347,0.0485,94156.0,94142.0,0.212444]
[1736396602669,0.0465,94156.0,94142.0,0.212444]
[1736396602894,0.212415,94155.0,94142.0,0.212444]
[1736396603089,0.0485,94156.0,94142.0,0.212444]
[1736396604698,0.0465,94156.0,94142.0,0.212444]
[1736396604910,0.002,94155.0,94142.0,0.212444]
[1736396605272,0.0465,94156.0,94142.0,0.212444]
[1736396605719,0.0485,94156.0,94142.0,0.212444]
[1736396605912,0.0465,94156.0,94142.0,0.212444]
[1736396606133,0.002,94155.0,94142.0,0.212444]
[1736396606525,0.0465,94156.0,94142.0,0.212444]
[1736396607754,5.749e-05,94157.0,94144.0,0.1278]
[1736396608159,0.002,94156.0,94153.0,0.212418]
[1736396608745,0.002,94156.0,94153.0,0.424837]
[1736396608938,5.749e-05,94157.0,94153.0,0.424837]
[1736396609161,5.749e-05,94157.0,94155.0,0.212415]
[1736396609760,5.749e-05,94157.0,94156.0,0.00106198]
[1736396610295,5.749e-05,94157.0,94155.0,0.212415]
[1736396611440,5.749e-05,94157.0,94155.0,0.214415]
[1736396611645,5.749e-05,94157.0,94155.0,0.220415]
[1736396614403,5.749e-05,94157.0,94155.0,0.218415]
[1736396614879,5.749e-05,94157.0,94155.0,0.219415]
[1736396615080,5.749e-05,94157.0,94155.0,0.213415]
[1736396615257,5.749e-05,94157.0,94155.0,0.216415]
[1736396615751,5.749e-05,94157.0,94155.0,0.213415]
[1736396615956,5.749e-05,94157.0,94155.0,0.218415]
[1736396618440,5.749e-05,94157.0,94156.0,0.0726359]
[1736396618658,5.749e-05,94157.0,94155.0,0.218415]
[1736396618858,5.749e-05,94157.0,94155.0,0.217415]
[1736396619061,5.749e-05,94157.0,94155.0,0.212415]
[1736396619258,5.749e-05,94157.0,94155.0,0.213415]
[1736396619477,5.749e-05,94157.0,94155.0,0.219415]
[1736396619662,5.749e-05,94157.0,94155.0,0.213415]
[1736396620095,5.749e-05,94157.0,94155.0,0.220415]
[1736396620489,5.749e-05,94157.0,94155.0,0.219415]
[1736396620851,5.749e-05,94157.0,94156.0,0.0727359]
[1736396621078,5.749e-05,94157.0,94155.0,0.221415]
[1736396621675,5.749e-05,94157.0,94155.0,0.219415]
[1736396622696,5.749e-05,94157.0,94156.0,0.002]
[1736396623978,5.749e-05,94157.0,94155.0,0.219415]
[1736396624177,5.749e-05,94157.0,94155.0,0.221415]
[1736396624744,5.749e-05,94157.0,94155.0,0.212415]
[1736396624950,5.749e-05,94157.0,94156.0,0.001]
[1736396625148,5.749e-05,94157.0,94156.0,0.004]
[1736396625349,5.749e-05,94157.0,94156.0,0.001]
[1736396625593,5.749e-05,94157.0,94155.0,0.212415]
[1736396625792,5.749e-05,94157.0,94155.0,0.219415]
[1736396625987,5.749e-05,94157.0,94155.0,0.214415]
[1736396626419,5.749e-05,94157.0,94156.0,0.005]
[1736396626619,5.749e-05,94157.0,94155.0,0.214415]
[1736396627224,5.749e-05,94157.0,94155.0,0.212415]
[1736396627383,5.749e-05,94157.0,94156.0,0.002]
[1736396628131,5.749e-05,94157.0,94155.0,0.212415]
[1736396628332,0.00059755,94171.0,94162.0,0.212399]
[1736396628530,0.00064772,94171.0,94162.0,0.212399]
[1736396629860,0.00164772,94171.0,94162.0,0.212399]
[1736396634787,0.00164772,94171.0,94162.0,0.424798]
[1736396634967,0.00064772,94171.0,94162.0,0.424798]
[1736396635219,0.00064772,94171.0,94162.0,0.46900367]
[1736396635914,0.00064772,94171.0,94162.0,0.424798]
[1736396636056,0.00064772,94171.0,94162.0,0.212399]
[1736396640091,0.00064772,94171.0,94166.0,0.21239]
[1736396641387,0.00064772,94171.0,94162.0,0.212399]
[1736396642104,0.00051989,94171.0,94162.0,0.212399]
[1736396642928,0.307164,94180.0,94162.0,0.212399]
[1736396642929,0.3236,94177.0,94162.0,0.212399]
[1736396643129,0.10429976,94176.0,94162.0,0.212399]
[1736396644565,0.10529976,94176.0,94162.0,0.212399]
[1736396644719,0.10529976,94176.0,94154.0,0.0831]
[1736396644917,0.35064513,94175.0,94158.0,5.017e-05]
[1736396645117,0.25,94170.0,94158.0,5.017e-05]